fUST/lending_fUST_20240512
["ID","MTS","AMOUNT","RATE_DAILY","PERIOD"]
[326848021,1715509883394,-500.0,0.00062465,120]
[326848022,1715509883404,-884.99,0.00062465,120]
[326848023,1715509883413,-1945.84,0.00062465,120]
[326848024,1715509883423,-1101.29,0.00062465,120]
[326848025,1715509883433,-683.11,0.00062465,120]
[326848026,1715509883442,-500.0,0.00062465,120]
[326848027,1715509883453,-500.0,0.00062465,120]
[326848028,1715509883463,-500.0,0.00062465,120]
[326848029,1715509883473,-500.0,0.00062465,120]
[326848030,1715509883483,-634.75,0.00062465,120]
[326848031,1715509883493,-500.0,0.00062465,120]
[326848032,1715509883503,-1202.07,0.00062465,120]
[326848033,1715509883512,-500.0,0.00062465,120]
[326848034,1715509883521,-652.77,0.00062465,120]
[326848035,1715509883530,-665.8,0.00062465,120]
[326848036,1715509883539,-2405.12,0.00062465,120]
[326848037,1715509883548,-1296.67,0.00062465,120]
[326848038,1715509883557,-500.0,0.00062465,120]
[326848039,1715509883567,-500.0,0.00062465,120]
[326848040,1715509883576,-515.15,0.00062465,120]
[326848041,1715509883586,-1711.77,0.00062465,120]
[326848042,1715509883594,-500.0,0.00062465,120]
[326848043,1715509883604,-620.48199319,0.00062465,120]
[326848044,1715509883613,-634.68,0.00062465,120]
[326848045,1715509883622,-674.93,0.00062465,120]
[326848046,1715509883631,-500.0,0.00062465,120]
[326848047,1715509883642,-669.18,0.00062465,120]
[326848048,1715509883651,-662.7,0.00062465,120]
[326848049,1715509883659,-672.84,0.00062465,120]
[326848050,1715509883668,-500.0,0.00062465,120]
[326848051,1715509883677,-500.0,0.00062465,120]
[326848052,1715509883687,-500.0,0.00062465,120]
[326848053,1715509883697,-500.0,0.00062465,120]
[326848054,1715509883706,-500.0,0.00062465,120]
[326848055,1715509883715,-500.0,0.00062465,120]
[326848056,1715509883724,-500.0,0.00062465,120]
[326848057,1715509883733,-500.0,0.00062465,120]
[326848058,1715509883743,-1082.38,0.00062465,120]
[326848059,1715509883752,-500.0,0.00062465,120]
[326848060,1715509883761,-2510.37,0.00062465,120]
[326848061,1715509883771,-168.472602,0.00062465,120]
[326848062,1715509883781,-168.472602,0.00062465,120]
[326848063,1715509883793,-4167.16,0.00062465,120]
[326848064,1715509883802,-1216.89,0.00062465,7]
[326848065,1715509883812,-568.37,0.00062465,120]
[326848066,1715509883822,-500.0,0.00062465,120]
[326848067,1715509883832,-500.0,0.00062465,120]
[326848068,1715509883842,-634.06614189,0.00062465,120]
[326848069,1715509883852,-634.17,0.00062465,120]
[326848070,1715509883861,-711.19,0.00062465,120]
[326848071,1715509883870,-645.64,0.00062465,120]
[326848072,1715509883880,-634.59,0.00062465,120]
[326848073,1715509883892,-522.61,0.00062465,120]
[326848074,1715509883902,-1199.73,0.00062465,120]
[326848075,1715509883911,-852.85,0.00062465,120]
[326848076,1715509883921,-500.0,0.00062465,120]
[326848077,1715509883930,-523.70109131,0.00062465,120]
[326848078,1715509883939,-625.2,0.00062465,120]
[326848079,1715509883949,-500.0,0.00062465,120]
[326848080,1715509883958,-500.0,0.00062465,120]
[326848081,1715509883968,-728.74,0.00062465,120]
[326848082,1715509883978,-501.04,0.00062465,120]
[326848083,1715509883987,-588.33,0.00062465,120]
[326848084,1715509883996,-500.0,0.00062465,120]
[326848085,1715509884006,-500.0,0.00062465,120]
[326848086,1715509884015,-1576.44,0.00062465,120]
[326848087,1715509884025,-500.0,0.00062465,120]
[326848088,1715509884035,-500.0,0.00062465,120]
[326848089,1715509884044,-500.0,0.00062465,120]
[326848090,1715509884054,-500.0,0.00062465,120]
[326848091,1715509884064,-642.78,0.00062465,120]
[326848092,1715509884074,-500.0,0.00062465,120]
[326848093,1715509884083,-1474.83,0.00062465,120]
[326848094,1715509884093,-500.0,0.00062465,120]
[326848095,1715509884103,-500.0,0.00062465,120]
[326848096,1715509884113,-500.0,0.00062465,120]
[326848097,1715509884122,-1138.94,0.00062465,120]
[326848098,1715509884132,-500.0,0.00062465,120]
[326848099,1715509884145,-2052.53,0.00062465,120]
[326848100,1715509884155,-3343.91,0.00062465,120]
[326848101,1715509884165,-500.0,0.00062465,120]
[326848102,1715509884174,-1280.34,0.00062465,120]
[326848103,1715509884183,-589.15,0.00062465,120]
[326848104,1715509884197,-990.89,0.00062465,120]
[326848105,1715509884206,-1022.63,0.00062465,120]
[326848106,1715509884216,-1377.96,0.00062465,120]
[326848107,1715509884225,-500.0,0.00062465,120]
[326848108,1715509884235,-849.72,0.00062465,120]
[326848109,1715509884245,-163.645192,0.00062465,120]
[326848110,1715509884255,-260.85048323,0.00062465,120]
[326848111,1715509884264,-500.0,0.00062465,120]
[326848112,1715509884274,-2169.41,0.00062465,120]
[326848113,1715509884284,-658.6,0.00062465,120]
[326848114,1715509884293,-926.02,0.00062465,120]
[326848115,1715509884303,-2031.16,0.00062465,120]
[326848116,1715509884312,-500.0,0.00062465,120]
[326848117,1715509884322,-1300.61,0.00062465,120]
[326848118,1715509884331,-4158.51,0.00062465,120]
[326848119,1715509884340,-500.0,0.00062465,120]
[326848120,1715509884350,-1707.07,0.00062465,120]
[326848121,1715509884359,-747.04,0.00062465,120]
[326848122,1715509884368,-500.0,0.00062465,120]
[326848123,1715509884378,-610.04,0.00062465,120]
[326848124,1715509884389,-616.93,0.00062465,120]
[326848125,1715509884397,-555.14,0.00062465,120]
[326848126,1715509884406,-500.0,0.00062465,120]
[326848127,1715509884415,-500.0,0.00062465,120]
[326848128,1715509884424,-663.17,0.00062465,60]
[326848129,1715509884434,-1965.65,0.00062465,120]
[326848130,1715509884444,-500.0,0.00062465,120]
[326848131,1715509884453,-500.0,0.00062465,120]
[326848132,1715509884463,-1720.11,0.00062465,120]
[326848133,1715509884472,-500.0,0.00062465,120]
[326848134,1715509884481,-1258.86,0.00062465,7]
[326848135,1715509884490,-500.0,0.00062465,120]
[326848136,1715509884500,-531.16,0.00062465,120]
[326848137,1715509884509,-500.0,0.00062465,120]
[326848138,1715509884518,-500.0,0.00062465,120]
[326848139,1715509884527,-1275.8,0.00062465,120]
[326848140,1715509884537,-1330.34,0.00062465,120]
[326848141,1715509884546,-1477.44,0.00062465,120]
[326848142,1715509884555,-500.0,0.00062465,120]
[326848143,1715509884564,-500.0,0.00062465,120]
[326848144,1715509884574,-500.0,0.00062465,120]
[326848145,1715509884583,-500.0,0.00062465,120]
[326848146,1715509884592,-500.0,0.00062465,120]
[326848147,1715509884601,-1415.41,0.00062465,120]
[326848148,1715509884610,-790.3,0.00062465,120]
[326848149,1715509884621,-500.0,0.00062465,120]
[326848150,1715509884630,-1299.65,0.00062465,120]
[326848151,1715509884641,-500.0,0.00062465,120]
[326848152,1715509884651,-631.96,0.00062465,120]
[326848153,1715509884660,-2939.68,0.00062465,21]
[326848154,1715509884670,-775.43,0.00062465,120]
[326848155,1715509884679,-500.0,0.00062465,120]
[326848156,1715509884689,-3584.43,0.00062465,120]
[326848157,1715509884698,-500.0,0.00062465,120]
[326848158,1715509884707,-500.0,0.00062465,120]
[326848159,1715509884716,-4428.92,0.00062465,120]
[326848160,1715509884725,-974.56,0.00062465,120]
[326848161,1715509884735,-500.0,0.00062465,120]
[326848162,1715509884744,-1052.97,0.00062465,120]
[326848163,1715509884753,-721.17,0.00062465,120]
[326848164,1715509884762,-661.04,0.00062465,120]
[326848165,1715509884771,-625.85,0.00062465,120]
[326848166,1715509884780,-980.18,0.00062465,120]
[326848167,1715509884789,-614.26,0.00062465,120]
[326848168,1715509884799,-500.0,0.00062465,120]
[326848169,1715509884809,-1131.83,0.00062465,120]
[326848170,1715509884818,-500.0,0.00062465,120]
[326848171,1715509884827,-583.64,0.00062465,120]
[326848172,1715509884836,-151.0,0.00062465,120]
[326848173,1715509884846,-513.88,0.00062465,120]
[326848174,1715509884855,-500.0,0.00062465,120]
[326848175,1715509884864,-500.0,0.00062465,120]
[326848176,1715509884874,-2410.3,0.00062465,120]
[326848177,1715509884884,-5121.64,0.00062465,120]
[326848178,1715509884894,-1457.89,0.00062465,120]
[326848179,1715509884903,-719.29,0.00062465,120]
[326848180,1715509884913,-1228.7,0.00062465,120]
[326848181,1715509884922,-500.0,0.00062465,120]
[326848182,1715509884932,-500.0,0.00062465,120]
[326848183,1715509884942,-1264.94,0.00062465,120]
[326848184,1715509884951,-1513.78,0.00062465,120]
[326848185,1715509884961,-673.28,0.00062465,120]
[326848186,1715509884970,-519.044299,0.00062465,120]
[326848187,1715509884979,-694.76,0.00062465,120]
[326848188,1715509884988,-1272.39,0.00062465,120]
[326848189,1715509884998,-519.044299,0.00062465,120]
[326848190,1715509885008,-2272.31,0.00062465,120]
[326848191,1715509885018,-500.0,0.00062465,120]
[326848192,1715509885027,-11483.2,0.00062465,120]
[326848193,1715509885036,-500.0,0.00062465,120]
[326848194,1715509885046,-500.0,0.00062465,7]
[326848195,1715509885055,-606.15,0.00062465,120]
[326848196,1715509885064,-500.0,0.00062465,120]
[326848197,1715509885073,-765.03,0.00062465,120]
[326848198,1715509885082,-287.597217,0.00062465,120]
[326848199,1715509885092,-500.0,0.00062465,120]
[326848200,1715509885101,-500.0,0.00062465,120]
[326848201,1715509885110,-287.597217,0.00062465,120]
[326848202,1715509885119,-910.45,0.00062465,120]
[326848203,1715509885129,-500.0,0.00062465,120]
[326848204,1715509885140,-1594.77,0.00062465,120]
[326848205,1715509885149,-749.73,0.00062465,120]
[326848206,1715509885158,-1094.1,0.00062465,120]
[326848207,1715509885167,-760.68,0.00062465,120]
[326848208,1715509885177,-1439.15,0.00062465,120]
[326848209,1715509885186,-728.36,0.00062465,120]
[326848210,1715509885196,-554.07,0.00062465,120]
[326848211,1715509885208,-851.93,0.00062465,120]
[326848212,1715509885217,-21061.66,0.00062465,120]
[326848213,1715509885226,-500.0,0.00062465,120]
[326848214,1715509885235,-1275.67,0.00062465,120]
[326848215,1715509885245,-181.189708,0.00062465,2]
[326848216,1715509885254,-697.89,0.00062465,120]
[326848217,1715509885263,-1584.34,0.00062465,120]
[326848218,1715509885273,-1080.54,0.00062465,120]
[326848219,1715509885282,-181.189708,0.00062465,2]
[326848220,1715509885291,-500.0,0.00062465,120]
[326848221,1715509885302,-151.0,0.00062685,120]
[326848222,1715509885311,-557.0,0.00063431,120]
[326848223,1715509885321,-500.0,0.00063561,120]
[326848224,1715509885330,-555.46637848,0.00063561,120]
[326848225,1715509885340,-500.0,0.00063561,120]
[326848226,1715509885349,-500.0,0.00063561,120]
[326848227,1715509885358,-792.18,0.00063561,120]
[326848228,1715509885367,-700.0,0.00063561,120]
[326848229,1715509885377,-500.0,0.00063561,120]
[326848230,1715509885388,-500.0,0.00063561,120]
[326848231,1715509885397,-500.0,0.00063561,120]
[326848232,1715509885407,-500.0,0.00063561,120]
[326848233,1715509885416,-500.0,0.00063561,120]
[326848234,1715509885425,-500.0,0.00063561,120]
[326848235,1715509885435,-500.0,0.00063561,120]
[326848236,1715509885444,-687.88,0.00063561,120]
[326848237,1715509885454,-1184.42,0.00063561,120]
[326848238,1715509885463,-622.05,0.00063561,120]
[326848239,1715509885472,-500.0,0.00063561,120]
[326848240,1715509885482,-500.0,0.00063561,120]
[326848241,1715509885491,-500.0,0.00063561,120]
[326848242,1715509885501,-500.0,0.00063561,120]
[326848243,1715509885510,-500.0,0.00063561,120]
[326848244,1715509885520,-1188.88,0.00063561,120]
[326848245,1715509885529,-500.0,0.00063561,120]
[326848246,1715509885539,-664.65,0.00063561,120]
[326848247,1715509885549,-500.0,0.00063561,120]
[326848248,1715509885559,-500.0,0.00063561,120]
[326848249,1715509885568,-500.0,0.00063561,120]
[326848250,1715509885577,-706.45,0.00063561,120]
[326848251,1715509885587,-589.94,0.00063561,120]
[326848252,1715509885596,-500.0,0.00063561,120]
[326848253,1715509885606,-500.0,0.00063561,120]
[326848254,1715509885616,-718.87,0.00063561,120]
[326848255,1715509885626,-668.81,0.00063561,120]
[326848256,1715509885635,-572.65716998,0.00063561,120]
[326848257,1715509885645,-1198.11,0.00063561,120]
[326848258,1715509885654,-500.0,0.00063561,120]
[326848259,1715509885663,-859.74,0.00063561,120]
[326848260,1715509885673,-500.0,0.00063561,120]
[326848261,1715509885683,-1019.78,0.00063561,120]
[326848262,1715509885692,-162.8453545,0.00063561,120]
[326848263,1715509885837,-500.0,0.00063561,120]
[326848264,1715509885847,-500.0,0.00063561,120]
[326848265,1715509885855,-573.76087491,0.00063561,120]
[326848266,1715509885864,-1222.61,0.00063561,120]
[326848267,1715509885873,-1076.09,0.00063561,4]
[326848268,1715509885882,-500.0,0.00063561,120]
[326848269,1715509885892,-500.0,0.00063561,120]
[326848270,1715509885901,-777.18,0.00063561,120]
[326848271,1715509885910,-623.85,0.00063561,120]
[326848272,1715509885919,-879.42,0.00063561,120]
[326848273,1715509885928,-300.0,0.00063561,7]
[326848274,1715509885937,-500.0,0.00063561,120]
[326848275,1715509885946,-500.0,0.00063561,120]
[326848276,1715509885955,-500.0,0.00063561,120]
[326848277,1715509885964,-1022.56,0.00063561,120]
[326848278,1715509885973,-500.0,0.00063561,120]
[326848279,1715509885982,-500.0,0.00063561,120]
[326848280,1715509885991,-1415.7,0.00063561,120]
[326848281,1715509886000,-676.96,0.00063561,120]
[326848282,1715509886009,-702.94,0.00063561,120]
[326848283,1715509886017,-1146.59,0.00063561,120]
[326848284,1715509886026,-846.45,0.00063561,120]
[326848285,1715509886035,-500.0,0.00063561,120]
[326848286,1715509886044,-500.0,0.00063561,120]
[326848287,1715509886054,-506.08,0.00063561,120]
[326848288,1715509886063,-694.21,0.00063561,120]
[326848289,1715509886071,-534.57,0.00063561,120]
[326848290,1715509886080,-628.13,0.00063561,120]
[326848291,1715509886090,-524.12332235,0.00063561,120]
[326848292,1715509886098,-500.0,0.00063561,120]
[326848293,1715509886107,-563.98,0.00063561,120]
[326848294,1715509886116,-500.0,0.00063561,120]
[326848295,1715509886125,-500.0,0.00063561,120]
[326848296,1715509886135,-500.0,0.00063561,120]
[326848297,1715509886144,-1333.29,0.00063561,120]
[326848298,1715509886153,-2080.97,0.00063561,120]
[326848299,1715509886162,-500.0,0.00063561,120]
[326848300,1715509886171,-369.69214509,0.00063561,120]
[326848301,1715509886180,-697.5,0.00063561,120]
[326848302,1715509886189,-500.0,0.00063561,120]
[326848303,1715509886198,-1146.84,0.00063561,120]
[326848304,1715509886211,-500.0,0.00063561,120]
[326848305,1715509886220,-500.0,0.00063561,120]
[326848306,1715509886228,-500.0,0.00063561,120]
[326848307,1715509886238,-500.0,0.00063561,120]
[326848308,1715509886249,-1062.31,0.00063561,120]
[326848309,1715509886258,-887.25,0.00063561,120]
[326848310,1715509886267,-500.0,0.00063561,120]
[326848311,1715509886277,-884.99,0.00063561,120]
[326848312,1715509886285,-1945.84,0.00063561,120]
[326848313,1715509886295,-1101.29,0.00063561,120]
[326848314,1715509886304,-683.11,0.00063561,120]
[326848315,1715509886313,-500.0,0.00063561,120]
[326848316,1715509886323,-500.0,0.00063561,120]
[326848317,1715509886331,-500.0,0.00063561,120]
[326848318,1715509886340,-500.0,0.00063561,120]
[326848319,1715509886349,-634.75,0.00063561,120]
[326848320,1715509886358,-500.0,0.00063561,120]
[326848321,1715509886367,-1202.07,0.00063561,120]
[326848322,1715509886377,-532.07910224,0.00063561,120]
[326848323,1715509886387,-652.77,0.00063561,120]
[326848324,1715509886395,-665.8,0.00063561,120]
[326848325,1715509886405,-2405.12,0.00063561,120]
[326848326,1715509886414,-1296.67,0.00063561,120]
[326848327,1715509886422,-500.0,0.00063561,120]
[326848328,1715509886432,-500.0,0.00063561,120]
[326848329,1715509886441,-515.15,0.00063561,120]
[326848330,1715509886449,-1711.77,0.00063561,120]
[326848331,1715509886458,-500.0,0.00063561,120]
[326848332,1715509886468,-634.68,0.00063561,120]
[326848333,1715509886477,-674.93,0.00063561,120]
[326848334,1715509886486,-500.0,0.00063561,120]
[326848335,1715509886495,-669.18,0.00063561,120]
[326848336,1715509886505,-662.7,0.00063561,120]
[326848337,1715509886514,-672.84,0.00063561,120]
[326848338,1715509886524,-500.0,0.00063561,120]
[326848339,1715509886533,-562.23529581,0.00063561,120]
[326848340,1715509886542,-500.0,0.00063561,120]
[326848341,1715509886551,-503.23487032,0.00063561,120]
[326848342,1715509886560,-212.47431139,0.00063561,120]
[326848343,1715509886569,-601.26097406,0.00063561,120]
[326848344,1715509886578,-500.0,0.00063561,120]
[326848345,1715509886588,-500.0,0.00063561,120]
[326848346,1715509886598,-1082.38,0.00063561,120]
[326848347,1715509886607,-500.0,0.00063561,120]
[326848348,1715509886616,-2510.37,0.00063561,120]
[326848349,1715509886625,-168.472602,0.00063561,120]
[326848350,1715509886634,-168.472597,0.00063561,120]
[326848351,1715509886643,-4167.16,0.00063561,120]
[326848352,1715509886651,-1216.89,0.00063561,7]
[326848353,1715509886660,-568.37,0.00063561,120]
[326848354,1715509886669,-500.0,0.00063561,120]
[326848355,1715509886678,-500.0,0.00063561,120]
[326848356,1715509886686,-634.17,0.00063561,120]
[326848357,1715509886695,-711.19,0.00063561,120]
[326848358,1715509886703,-645.64,0.00063561,120]
[326848359,1715509886712,-634.59,0.00063561,120]
[326848360,1715509886722,-522.61,0.00063561,120]
[326848361,1715509886731,-1199.73,0.00063561,120]
[326848362,1715509886739,-852.85,0.00063561,120]
[326848363,1715509886748,-500.0,0.00063561,120]
[326848364,1715509886757,-625.2,0.00063561,120]
[326848365,1715509886766,-500.0,0.00063561,120]
[326848366,1715509886775,-500.0,0.00063561,120]
[326848367,1715509886784,-728.74,0.00063561,120]
[326848368,1715509886792,-501.04,0.00063561,120]
[326848369,1715509886801,-588.33,0.00063561,120]
[326848370,1715509886810,-500.0,0.00063561,120]
[326848371,1715509886818,-500.0,0.00063561,120]
[326848372,1715509886827,-1576.44,0.00063561,120]
[326848373,1715509886836,-500.0,0.00063561,120]
[326848374,1715509886844,-500.0,0.00063561,120]
[326848375,1715509886853,-500.0,0.00063561,120]
[326848376,1715509886862,-500.0,0.00063561,120]
[326848377,1715509886871,-642.78,0.00063561,120]
[326848378,1715509886879,-500.0,0.00063561,120]
[326848379,1715509886890,-1474.83,0.00063561,120]
[326848380,1715509886899,-500.0,0.00063561,120]
[326848381,1715509886908,-500.0,0.00063561,120]
[326848382,1715509886919,-500.0,0.00063561,120]
[326848383,1715509886928,-1138.94,0.00063561,120]
[326848384,1715509886937,-500.0,0.00063561,120]
[326848385,1715509886947,-2052.53,0.00063561,120]
[326848386,1715509886956,-3343.91,0.00063561,120]
[326848387,1715509886965,-500.0,0.00063561,120]
[326848388,1715509886974,-1280.34,0.00063561,120]
[326848389,1715509886983,-589.15,0.00063561,120]
[326848390,1715509886992,-990.89,0.00063561,120]
[326848391,1715509887001,-1022.63,0.00063561,120]
[326848392,1715509887011,-1377.96,0.00063561,120]
[326848393,1715509887020,-500.0,0.00063561,120]
[326848394,1715509887029,-849.72,0.00063561,120]
[326848395,1715509887038,-500.0,0.00063561,120]
[326848396,1715509887047,-2169.41,0.00063561,120]
[326848397,1715509887056,-658.6,0.00063561,120]
[326848398,1715509887065,-926.02,0.00063561,120]
[326848399,1715509887075,-2031.16,0.00063561,120]
[326848400,1715509887084,-500.0,0.00063561,120]
[326848401,1715509887093,-1300.61,0.00063561,120]
[326848402,1715509887102,-4158.51,0.00063561,120]
[326848403,1715509887111,-500.0,0.00063561,120]
[326848404,1715509887120,-1707.07,0.00063561,120]
[326848405,1715509887130,-747.04,0.00063561,120]
[326848406,1715509887141,-500.0,0.00063561,120]
[326848407,1715509887150,-610.04,0.00063561,120]
[326848408,1715509887159,-616.93,0.00063561,120]
[326848409,1715509887167,-555.14,0.00063561,120]
[326848410,1715509887176,-500.0,0.00063561,120]
[326848411,1715509887186,-500.0,0.00063561,120]
[326848412,1715509887200,-663.17,0.00063561,60]
[326848413,1715509887209,-1965.65,0.00063561,120]
[326848414,1715509887219,-500.0,0.00063561,120]
[326848415,1715509887228,-500.0,0.00063561,120]
[326848416,1715509887237,-1720.11,0.00063561,120]
[326848417,1715509887246,-500.0,0.00063561,120]
[326848418,1715509887255,-1258.86,0.00063561,7]
[326848419,1715509887264,-500.0,0.00063561,120]
[326848420,1715509887275,-531.16,0.00063561,120]
[326848421,1715509887284,-500.0,0.00063561,120]
[326848422,1715509887293,-543.51774231,0.00063561,120]
[326848423,1715509887302,-1275.8,0.00063561,120]
[326848424,1715509887311,-1330.34,0.00063561,120]
[326848425,1715509887320,-1477.44,0.00063561,120]
[326848426,1715509887330,-500.0,0.00063561,120]
[326848427,1715509887339,-500.0,0.00063561,120]
[326848428,1715509887349,-500.0,0.00063561,120]
[326848429,1715509887358,-548.92925702,0.00063561,120]
[326848430,1715509887367,-500.0,0.00063561,120]
[326848431,1715509887376,-1415.41,0.00063561,120]
[326848432,1715509887386,-790.3,0.00063561,120]
[326848433,1715509887395,-500.0,0.00063561,120]
[326848434,1715509887404,-1299.65,0.00063561,120]
[326848435,1715509887413,-500.0,0.00063561,120]
[326848436,1715509887422,-631.96,0.00063561,120]
[326848437,1715509887433,-2939.68,0.00063561,21]
[326848438,1715509887443,-775.43,0.00063561,120]
[326848439,1715509887451,-500.0,0.00063561,120]
[326848440,1715509887461,-3584.43,0.00063561,120]
[326848441,1715509887470,-500.0,0.00063561,120]
[326848442,1715509887479,-500.0,0.00063561,120]
[326848443,1715509887488,-4428.92,0.00063561,120]
[326848444,1715509887497,-974.56,0.00063561,120]
[326848445,1715509887506,-500.0,0.00063561,120]
[326848446,1715509887515,-1052.97,0.00063561,120]
[326848447,1715509887525,-721.17,0.00063561,120]
[326848448,1715509887534,-661.04,0.00063561,120]
[326848449,1715509887544,-625.85,0.00063561,120]
[326848450,1715509887553,-980.18,0.00063561,120]
[326848451,1715509887562,-614.26,0.00063561,120]
[326848452,1715509887571,-500.0,0.00063561,120]
[326848453,1715509887580,-1131.83,0.00063561,120]
[326848454,1715509887593,-583.64,0.00063561,120]
[326848455,1715509887603,-500.0,0.00063561,120]
[326848456,1715509887612,-151.0,0.00063561,120]
[326848457,1715509887621,-513.88,0.00063561,120]
[326848458,1715509887630,-500.0,0.00063561,120]
[326848459,1715509887640,-500.0,0.00063561,120]
[326848460,1715509887648,-2410.3,0.00063561,120]
[326848461,1715509887657,-5121.64,0.00063561,120]
[326848462,1715509887666,-1457.89,0.00063561,120]
[326848463,1715509887675,-719.29,0.00063561,120]
[326848464,1715509887684,-1228.7,0.00063561,120]
[326848465,1715509887694,-500.0,0.00063561,120]
[326848466,1715509887703,-500.0,0.00063561,120]
[326848467,1715509887711,-1264.94,0.00063561,120]
[326848468,1715509887720,-1513.78,0.00063561,120]
[326848469,1715509887730,-673.28,0.00063561,120]
[326848470,1715509887739,-519.044299,0.00063561,120]
[326848471,1715509887748,-694.76,0.00063561,120]
[326848472,1715509887758,-1272.39,0.00063561,120]
[326848473,1715509887768,-519.044298,0.00063561,120]
[326848474,1715509887778,-2272.31,0.00063561,120]
[326848475,1715509887788,-500.0,0.00063561,120]
[326848476,1715509887797,-11483.2,0.00063561,120]
[326848477,1715509887807,-500.0,0.00063561,120]
[326848478,1715509887816,-500.0,0.00063561,7]
[326848479,1715509887825,-606.15,0.00063561,120]
[326848480,1715509887834,-500.0,0.00063561,120]
[326848481,1715509887843,-765.03,0.00063561,120]
[326848482,1715509887852,-287.597217,0.00063561,120]
[326848483,1715509887862,-589.56341961,0.00063561,120]
[326848484,1715509887871,-638.73238884,0.00063561,120]
[326848485,1715509887880,-287.597225,0.00063561,120]
[326848486,1715509887890,-910.45,0.00063561,120]
[326848487,1715509887899,-500.0,0.00063561,120]
[326848488,1715509887908,-1594.77,0.00063561,120]
[326848489,1715509887918,-749.73,0.00063561,120]
[326848490,1715509887927,-1094.1,0.00063561,120]
[326848491,1715509887936,-760.68,0.00063561,120]
[326848492,1715509887946,-1439.15,0.00063561,120]
[326848493,1715509887955,-728.36,0.00063561,120]
[326848494,1715509887964,-554.07,0.00063561,120]
[326848495,1715509887973,-851.93,0.00063561,120]
[326848496,1715509887982,-21061.66,0.00063561,120]
[326848497,1715509887992,-420.93029055,0.00063561,120]
[326848498,1715509888001,-1275.67,0.00063561,120]
[326848499,1715509888011,-181.189708,0.00063561,2]
[326848500,1715509888022,-697.89,0.00063561,120]
[326848501,1715509888032,-1584.34,0.00063561,120]
[326848502,1715509888041,-1080.54,0.00063561,120]
[326848503,1715509888051,-181.189714,0.00063561,2]
[326848504,1715509888060,-500.0,0.00063561,120]
[326848505,1715509888070,-151.0,0.00063863,120]
[326848506,1715509888080,-50573.0,0.0006459,120]
[326848507,1715509888089,-500.0,0.00064657,120]
[326848508,1715509888098,-393.5698479,0.00064657,120]
[326848509,1715509888108,-500.0,0.00064657,120]
[326848510,1715509888119,-792.18,0.00064657,120]
[326848511,1715509888128,-700.0,0.00064657,120]
[326848512,1715509888139,-500.0,0.00064657,120]
[326848513,1715509888148,-500.0,0.00064657,120]
[326848514,1715509888158,-500.0,0.00064657,120]
[326848515,1715509888167,-500.0,0.00064657,120]
[326848516,1715509888176,-500.0,0.00064657,120]
[326848517,1715509888185,-500.0,0.00064657,120]
[326848518,1715509888194,-500.0,0.00064657,120]
[326848519,1715509888207,-687.88,0.00064657,120]
[326848520,1715509888216,-1184.42,0.00064657,120]